[Event "Marienbad Open-B2 2019"]
[Site "Marianske Lazne"]
[Date "2019.01.26"]
[Round "9"]
[White "Kacharava, Nikolozi"]
[Black "Hesse, Henrik"]
[Result "1/2-1/2"]
[ECO "B45"]
[WhiteElo "2397"]
[BlackElo "2166"]
[Annotator "NA"]
[PlyCount "66"]
[EventDate "2019.01.17"]
[EventType "tourn"]
[EventCountry "CZE"]
[SourceTitle "playchess.com"]
[Source "ChessBase"]
[SourceQuality "1"]
[TimeControl "40/5400+30:1800+30"]

{[%evp 10,66,37,41,32767,25,60,25,35,45,41,25,20,17,32767,18,27,32767,60,30,32767,32767,32767,32767,32767,32767,32767,0,2,9,32767,0,12,0,0,0,10,3,15,32767,6,32767,-4,-10,32767,32767,32767,32767,0,-6,-2,-5,32767,32767,32767,-8,32767,32767,0]} 1. e4 {[%emt 0:00:00]} c5 {[%emt 0:00:44]} 2. Nf3 {[%emt 0:00:04]} e6 {[%emt 0:00:18]} 3. d4 {[%emt 0:00:26]} cxd4 {[%emt 0:00:22]} 4. Nxd4 {[%emt 0:00:17]} Nc6 {[%emt 0:00:11]} 5. Nc3 {[%emt 0:00:30]} Qc7 {[%emt 0:00:11]} 6. Be3 {[%emt 0:00:43]} a6 {[%emt 0:00:23]} 7. f4 {[%emt 0:00:28]} d6 {[%emt 0:05:43]} 8. Bd3 {[%emt 0:10:48]} Nf6 {[%emt 0:04:04]} 9. O-O {[%emt 0:01:34]} Be7 {[%emt 0:00:30]} 10. Qf3 {[%emt 0:04:45]} O-O {[%emt 0:06:40]} 11. a3 {[%emt 0:03:14]} Nxd4 {[%emt 0:09:26] B48: Sicilian: Taimanov: 5 Nc3 Qc7 6 Be3 a6 without Be2} 12. Bxd4 {[%emt 0:02:49]} e5 {[%emt 0:00:11]} 13. Be3 {[%emt 0:08:26]} exf4 {[%emt 0:00:35]} 14. Qxf4 {[%emt 0:05:20] LiveBook: 7 Games} Be6 {[%emt 0:11:35]} 15. Nd5 {[%emt 0:05:14]} Bxd5 {[%emt 0:02:20]} 16. exd5 {[%emt 0:00:09]} g6 {[%emt 0:02:35]} 17. Qd4 {[%emt 0:12:49]} (17. Bd4 Nd7 18. Qh6 Ne5 19. Rae1 {½-½ (41) Morozevich,A (2656)-Chigaev,M (2606) Khanty-Mansiysk 2018}) 17... Rfe8 {[%emt 0:03:20]} 18. Bh6 {[%emt 0:03:52]} Qc5 {[%emt 0:04:03]} 19. Qxc5 {[%emt 0:00:24]} dxc5 {[%emt 0:00:02]} 20. d6 $146 {[%emt 0:05:43]} Ng4 $1 {[%emt 0:00:06]} 21. Bf4 {[%emt 0:02:45]} Bf6 {[%emt 0:04:18]} 22. c3 {[%emt 0:00:37]} Be5 {[%emt 0:02:16]} 23. Bc4 {[%emt 0:07:18]} Bxf4 {[%emt 0:06:01]} 24. Rxf4 {[%emt 0:00:14]} Ne5 {[%emt 0:00:20]} 25. Raf1 {[%emt 0:05:11]} Nxc4 {[%emt 0:00:54]} 26. Rxc4 {[%emt 0:00:08]} Rad8 {[%emt 0:05:57]} 27. Rd1 {[%emt 0:07:44]} Re6 {[%emt 0:03:42]} 28. b4 {[%emt 0:01:50]} Rexd6 {[%emt 0:05:11]} 29. Rxd6 {[%emt 0:00:16]} Rxd6 {[%emt 0:00:08]} 30. Rxc5 {[%emt 0:00:20]} Rd1+ {[%emt 0:09:57]} 31. Kf2 {[%emt 0:00:01]} Ra1 {[%emt 0:00:10]} 32. Ra5 {[%emt 0:00:19]} Rc1 {[%emt 0:05:27]} 33. Rc5 {[%emt 0:00:15]} Ra1 $11 {[%emt 0:00:55]} 1/2-1/2

[Event "Marienbad Open-B2 2019"]
[Site "Marianske Lazne"]
[Date "2019.01.26"]
[Round "9"]
[White "Cerveny, Petr"]
[Black "Ng, Jen Sheng"]
[Result "1/2-1/2"]
[ECO "C11"]
[WhiteElo "2318"]
[BlackElo "2075"]
[Annotator "NA"]
[PlyCount "62"]
[EventDate "2019.01.17"]
[EventType "tourn"]
[EventCountry "CZE"]
[SourceTitle "playchess.com"]
[Source "ChessBase"]
[SourceQuality "1"]
[TimeControl "40/5400+30:1800+30"]

1. e4 {[%emt 0:00:00]} e6 {[%emt 0:00:00]} 2. d4 {[%emt 0:00:00]} d5 {[%emt 0:00:00]} 3. Nc3 {[%emt 0:00:00]} Nf6 {[%emt 0:00:00]} 4. e5 {[%emt 0:00:00]} Nfd7 {[%emt 0:00:00]} 5. f4 {[%emt 0:00:00]} c5 {[%emt 0:00:00]} 6. Nf3 {[%emt 0:00:00]} Nc6 {[%emt 0:00:00]} 7. Be3 {[%emt 0:00:00]} a6 {[%emt 0:00:00]} 8. Qd2 {[%emt 0:00:31]} b5 {[%emt 0:00:00]} 9. a3 {[%emt 0:00:27]} Qb6 {[%emt 0:00:00]} 10. Nd1 {[%emt 0:01:29] C11: French: Classical System: 4 e5 and 4 Bg5 dxe4} (10. Ne2 b4 11. axb4 Qxb4 12. c3 Qb7 13. Nc1 Be7 14. Bd3 c4 15. Bb1 Rb8 16. Ra2 Nb4 17. Ra1 Nc6 18. Ra2 {½-½ (18) Karjakin,S (2723)-Vitiugov,N (2694) Khanty-Mansiysk 2009}) 10... cxd4 {[%emt 0:09:34]} 11. Nxd4 {[%emt 0:00:38]} Bc5 {[%emt 0:00:09]} 12. c3 {[%emt 0:01:24]} Qc7 $146 {[%emt 0:01:19]} ({Predecessor:} 12... O-O 13. Bd3 a5 14. O-O Bb7 15. Nxb5 Ba6 16. Nd4 Bxd3 17. Qxd3 Rfc8 {1-0 (49) Zemlyanov,S (2070)-Von de Heydt,H (2158) ICCF email 2010}) 13. b4 {[%emt 0:09:33]} Bxd4 {[%emt 0:05:01]} 14. Bxd4 {[%emt 0:00:58]} Nxd4 {[%emt 0:01:08]} 15. Qxd4 {[%emt 0:01:24]} O-O {[%emt 0:07:09]} 16. Be2 {[%emt 0:05:50]} f6 {[%emt 0:19:43]} 17. exf6 {[%emt 0:01:15]} Nxf6 {[%emt 0:01:59]} 18. O-O {[%emt 0:00:43]} Ne4 {[%emt 0:02:28]} 19. g3 {[%emt 0:11:34]} Bb7 {[%emt 0:00:40]} 20. Bd3 {[%emt 0:07:55]} Rac8 {[%emt 0:09:21]} 21. Ra2 {[%emt 0:16:42]} Qe7 {[%emt 0:08:33]} 22. Rc2 {[%emt 0:18:02]} Qf6 {[%emt 0:01:33]} 23. Qxf6 {[%emt 0:00:59]} gxf6 {[%emt 0:02:00]} 24. f5 {[%emt 0:11:30]} Kf7 {[%emt 0:03:34]} 25. fxe6+ {[%emt 0:00:39]} Kxe6 {[%emt 0:00:04]} 26. Rf4 {[%emt 0:01:00]} Rc7 {[%emt 0:06:05]} 27. Ne3 {[%emt 0:06:17]} Ke5 {[%emt 0:07:01]} 28. Ng4+ {[%emt 0:00:42]} Ke6 {[%emt 0:00:19]} 29. Ne3 {[%emt 0:00:01]} Ke5 {[%emt 0:00:06]} 30. Ng4+ {[%emt 0:03:25]} Ke6 $11 {[%emt 0:00:02]} 31. Ne3 {[%emt 0:01:27]} Ke5 1/2-1/2

[Event "Marienbad Open-B2 2019"]
[Site "Marianske Lazne"]
[Date "2019.01.26"]
[Round "9"]
[White "Jurek, Josef"]
[Black "Stigar, Petter"]
[Result "1/2-1/2"]
[ECO "A13"]
[WhiteElo "2273"]
[BlackElo "2177"]
[Annotator "NA"]
[PlyCount "45"]
[EventDate "2019.01.17"]
[EventType "tourn"]
[EventCountry "CZE"]
[SourceTitle "playchess.com"]
[Source "ChessBase"]
[SourceQuality "1"]
[TimeControl "40/5400+30:1800+30"]

1. c4 {[%emt 0:00:00]} e6 {[%emt 0:00:47]} 2. Nc3 {[%emt 0:00:07]} d5 {[%emt 0:00:21]} 3. d4 {[%emt 0:00:15]} Nf6 {[%emt 0:00:19]} 4. Bg5 {[%emt 0:00:13]} Be7 {[%emt 0:00:27]} 5. e3 {[%emt 0:00:24]} Nbd7 {[%emt 0:00:24]} 6. Nf3 {[%emt 0:00:19]} h6 {[%emt 0:00:16]} 7. Bh4 {[%emt 0:00:16]} O-O {[%emt 0:00:18]} 8. Rc1 {[%emt 0:01:29]} c5 {[%emt 0:03:01] D63: Queen's Gambit Declined: Classical: 7 Rc1} 9. cxd5 {[%emt 0:03:06]} (9. dxc5 Nxc5 10. cxd5 g5 11. Bg3 Nxd5 12. Nxd5 Qxd5 13. Qxd5 exd5 14. Nd4 Bd7 15. Be2 Rac8 16. O-O {½-½ (31) Ivanchuk,V (2710)-Yu,Y (2765) Batumi 2018}) 9... Nxd5 {[%emt 0:00:15]} 10. Bxe7 {[%emt 0:00:42]} Nxe7 {[%emt 0:00:04]} 11. Bb5 {[%emt 0:06:34]} cxd4 {[%emt 0:00:35] LiveBook: 24 Games} 12. Qxd4 {[%emt 0:01:47]} Nf6 {[%emt 0:00:35]} 13. O-O {[%emt 0:08:07]} a6 {[%emt 0:14:13]} 14. Be2 {[%emt 0:02:24]} Qxd4 {[%emt 0:06:01]} 15. Nxd4 {[%emt 0:01:09]} Bd7 {[%emt 0:01:22]} 16. Bf3 {[%emt 0:04:50]} Rab8 $146 {[%emt 0:01:42]} 17. Rfd1 $11 {[%emt 0:03:21]} Rfc8 {[%emt 0:09:48]} 18. Kf1 {[%emt 0:06:53]} Kf8 {[%emt 0:01:38]} 19. Ke1 {[%emt 0:02:36]} Rc7 {[%emt 0:01:44]} 20. Ne4 {[%emt 0:04:36]} Rxc1 {[%emt 0:08:34]} 21. Rxc1 {[%emt 0:00:32]} Nxe4 {[%emt 0:00:47]} 22. Bxe4 {[%emt 0:00:31]} Rc8 {[%emt 0:00:21]} 23. Rxc8+ 1/2-1/2

[Event "Marienbad Open-B2 2019"]
[Site "Marianske Lazne"]
[Date "2019.01.26"]
[Round "9"]
[White "German, Nikita"]
[Black "Frolov, Artur"]
[Result "0-1"]
[ECO "B30"]
[WhiteElo "2162"]
[BlackElo "2430"]
[Annotator "NA RC"]
[PlyCount "118"]
[EventDate "2019.01.17"]
[EventType "tourn"]
[EventCountry "CZE"]
[SourceTitle "playchess.com"]
[Source "ChessBase"]
[SourceQuality "1"]
[TimeControl "40/5400+30:1800+30"]

{[%evp 8,111,27,34,27,37,39,32767,26,32767,24,39,46,52,48,58,52,34,45,-18,29,36,33,24,49,10,0,0,16,-11,13,4,32767,37,34,40,31,25,35,15,23,-6,0,-6,0,0,0,-55,-66,-409,-118,-95,-38,-24,-24,-37,-26,-21,-26,-31,32767,-16,32767,32767,-19,-16,-14,-26,-40,-127,-152,-139,-122,32767,32767,32767,-99,-99,-83,-120,32767,32767,32767,-225,-158,-107,-122,-249,-8,-24,-18,0,32767,0,32767,0,0,0,0,-5057,32767,-2468,-4989,-4362,-5073,-5781]} 1. e4 {[%emt 0:02:26]} c5 {[%emt 0:00:00]} 2. Nf3 {[%emt 0:00:09]} Nc6 {[%emt 0:00:00]} 3. d4 {[%emt 0:00:25]} cxd4 {[%emt 0:00:00]} 4. Nxd4 {[%emt 0:00:06]} Nf6 {[%emt 0:00:00]} 5. Nc3 {[%emt 0:00:11]} d6 {[%emt 0:00:03]} 6. Bg5 {[%emt 0:00:31]} e6 {[%emt 0:00:07]} 7. Qd2 {[%emt 0:00:19]} a6 {[%emt 0:00:23]} 8. O-O-O {[%emt 0:00:20]} Bd7 {[%emt 0:00:34]} 9. f4 {[%emt 0:00:26]} Be7 {[%emt 0:00:21]} 10. Nf3 {[%emt 0:15:18]} b5 {[%emt 0:00:08]} 11. Bxf6 {[%emt 0:00:45]} gxf6 {[%emt 0:00:05]} 12. Kb1 {[%emt 0:13:42]} Qa5 {[%emt 0:14:43] LiveBook: 12 Games B69: Sicilian: Richter-Rauzer: 7...a6 8 0-0-0 Bd7 9 f4 Be7 10 Nf3 b5 11 Bxf6} (12... Qb6 13. f5 O-O-O 14. g3 Na5 15. Bh3 Nc4 16. Qe2 Rhe8 17. Nd4 Bf8 18. Qh5 b4 19. fxe6 fxe6 20. Nce2 Kb8 21. Nf4 f5 22. exf5 Nxb2 23. Kxb2 {0-1 (75) Ragger,M (2701)-Salgado Lopez,I (2624) Germany 2018}) 13. Qe3 {[%emt 0:07:55]} ({Better is} 13. f5 $14) 13... Rc8 $146 {[%emt 0:03:55]} ({Predecessor:} 13... b4 14. Ne2 Qc5 15. Qxc5 dxc5 16. Nd2 Na5 17. Nc1 Bb5 18. Ncb3 Nc6 19. Nc4 Rd8 {½-½ (99) Arnason,J (2555)-Maki,V (2340) Torshavn 1987}) 14. Nd2 {[%emt 0:17:43]} Qc7 {[%emt 0:07:14]} 15. Bd3 {[%emt 0:06:18]} Nb4 {[%emt 0:06:24]} 16. a3 {[%emt 0:03:17]} Nxd3 {[%emt 0:00:32]} 17. Qxd3 {[%emt 0:09:16]} Qb6 {[%emt 0:08:31]} 18. Ne2 {[%emt 0:06:17]} b4 {[%emt 0:14:43]} 19. Nc4 {[%emt 0:12:40]} Qc5 {[%emt 0:06:32]} 20. Nxd6+ {[%emt 0:00:19]} Bxd6 {[%emt 0:00:04]} 21. Qxd6 {[%emt 0:00:10]} Qxd6 {[%emt 0:00:29]} 22. Rxd6 {[%emt 0:00:10]} bxa3 {[%emt 0:00:02]} 23. b3 {[%emt 0:01:52]} Bc6 {[%emt 0:05:25]} 24. Nc3 {[%emt 0:00:40]} Ke7 {[%emt 0:00:53]} 25. Rd3 {[%emt 0:00:33]} Rhg8 {[%emt 0:02:55]} 26. Rg1 {[%emt 0:00:13]} Rc7 {[%emt 0:00:17]} 27. g3 {[%emt 0:00:49]} Rgc8 {[%emt 0:00:04]} 28. Rg2 $2 {[%emt 0:00:35] [#]} (28. g4 $15) 28... f5 $2 {[%emt 0:00:25]} (28... Ba8 $1 $19 29. Re2 Rxc3 30. Rxc3 Rxc3) 29. Nd5+ {[%emt 0:00:30]} Bxd5 {[%emt 0:00:39]} (29... exd5 $17 30. exd5 Bb7) 30. exd5 {[%emt 0:00:04] [#]} a2+ $1 {[%emt 0:00:24]} 31. Ka1 {[%emt 0:00:45]} Rxc2 {[%emt 0:00:28]} 32. Rdd2 $1 {[%emt 0:00:29]} Rxd2 {[%emt 0:01:32]} 33. Rxd2 {[%emt 0:00:04]} Rd8 {[%emt 0:00:23]} 34. Rxa2 {[%emt 0:00:39]} Rxd5 {[%emt 0:00:26]} 35. Rxa6 {[%emt 0:00:10]} Rd1+ {[%emt 0:00:14]} 36. Kb2 {[%emt 0:00:03]} Rd2+ {[%emt 0:00:04]} 37. Ka3 {[%emt 0:00:06]} (37. Kc3 $5 {[%cal Rc3d2]} Rxh2 38. Ra7+ Kd6 39. Rxf7 $11) 37... Rxh2 {[%emt 0:00:10]} 38. Rc6 {[%emt 0:00:03]} (38. b4 $1 $11 {keeps the balance.}) 38... Rh3 {[%emt 0:01:05]} 39. Rc3 {[%emt 0:00:08]} h5 {[%emt 0:00:11]} 40. Kb4 {[%emt 0:00:15]} h4 {[%emt 0:00:16]} 41. gxh4 {[%emt 0:30:03]} Rxh4 {[%emt 0:30:06]} 42. Rc4 {[%emt 0:00:15]} Rh3 {[%emt 0:02:17]} 43. Ka4 {[%emt 0:00:00]} Re3 {[%emt 0:00:00]} 44. b4 {[%emt 0:00:00]} Re4 {[%emt 0:00:00]} 45. Rc7+ {[%emt 0:00:00]} Kd6 {[%emt 0:00:00]} 46. Rxf7 {[%emt 0:00:00]} Rxf4 {[%emt 0:00:00]} 47. Ka5 {[%emt 0:00:00]} Rf1 {[%emt 0:00:00]} (47... Rf3 $17) 48. b5 {[%emt 0:00:00]} Kc5 {[%emt 0:00:00]} 49. Rc7+ {[%emt 0:00:00]} Kd4 {[%emt 0:00:00]} 50. b6 $1 {[%emt 0:00:00]} Rb1 {[%emt 0:00:00]} 51. b7 {[%emt 0:02:14]} f4 {[%emt 0:00:13]} 52. Ka6 $1 {[%emt 0:00:56]} e5 {[%emt 0:03:49]} 53. Rc8 $2 {[%emt 0:04:10]} (53. Rf7 $11) 53... e4 {[%emt 0:01:35]} 54. b8=Q {[%emt 0:02:01]} Rxb8 {[%emt 0:00:11]} 55. Rxb8 {[%emt 0:00:03]} e3 {[%emt 0:00:16]} 56. Rd8+ $19 {[%emt 0:00:54]} Kc3 {[%emt 0:03:10]} 57. Re8 {[%emt 0:00:16]} Kd2 {[%emt 0:00:14]} 58. Rd8+ {[%emt 0:00:50]} Ke2 {[%emt 0:00:35]} 59. Kb5 {[%emt 0:00:12]} f3 {[%emt 0:00:05]} 0-1